[Event "*** Titled Tuesday Blitz"]
[Site "Chess.com"]
[Date "2021.03.16"]
[Round "1"]
[White "Smile2005"]
[Black "ckgchess"]
[Result "1-0"]
[WhiteElo "2428"]
[BlackElo "2759"]
[TimeControl "180+1"]
[EndTime "10:06:26 PDT"]
[Termination "Smile2005 won on time"]

1. Nf3 {[%clk 0:03:00.8]} 1... g6 {[%clk 0:02:59.6]} 2. g3 {[%clk 0:03:00.8]}
2... Bg7 {[%clk 0:03:00.2]} 3. Bg2 {[%clk 0:03:01.4]} 3... Nf6 {[%clk
0:03:01.1]} 4. O-O {[%clk 0:03:02.1]} 4... O-O {[%clk 0:03:02]} 5. d3 {[%clk
0:03:02.7]} 5... d5 {[%clk 0:03:02.2]} 6. Nc3 {[%clk 0:03:03.3]} 6... c5 {[%clk
0:03:02.6]} 7. e4 {[%clk 0:03:03.9]} 7... d4 {[%clk 0:03:00.9]} 8. Nb1 {[%clk
0:03:03.9]} 8... Nc6 {[%clk 0:03:01.4]} 9. a4 {[%clk 0:03:04.6]} 9... e5 {[%clk
0:03:01.4]} 10. Na3 {[%clk 0:03:05.1]} 10... h6 {[%clk 0:02:59.8]} 11. Nc4
{[%clk 0:03:05.5]} 11... Qc7 {[%clk 0:02:56.5]} 12. Bd2 {[%clk 0:03:04.4]} 12...
b6 {[%clk 0:02:54.2]} 13. b3 {[%clk 0:03:04.1]} 13... Ne8 {[%clk 0:02:12.7]} 14.
Nh4 {[%clk 0:03:02.2]} 14... Nd6 {[%clk 0:02:10.5]} 15. Nxd6 {[%clk 0:02:57.5]}
15... Qxd6 {[%clk 0:02:11.4]} 16. f4 {[%clk 0:02:57.1]} 16... exf4 {[%clk
0:02:12.3]} 17. Bxf4 {[%clk 0:02:56.5]} 17... Ne5 {[%clk 0:02:07.4]} 18. Nf3
{[%clk 0:02:55.6]} 18... Bg4 {[%clk 0:01:58.4]} 19. h3 {[%clk 0:02:52.7]} 19...
Bxf3 {[%clk 0:01:58.4]} 20. Bxf3 {[%clk 0:02:51.8]} 20... Nxf3+ {[%clk
0:01:42.6]} 21. Qxf3 {[%clk 0:02:50.8]} 21... Qe6 {[%clk 0:01:43.5]} 22. Kg2
{[%clk 0:02:45.2]} 22... Rae8 {[%clk 0:01:42.5]} 23. a5 {[%clk 0:02:43.8]} 23...
f5 {[%clk 0:01:40.9]} 24. axb6 {[%clk 0:02:33.9]} 24... fxe4 {[%clk 0:01:36.3]}
25. Qxe4 {[%clk 0:02:33.8]} 25... Qxb6 {[%clk 0:01:30.2]} 26. Qd5+ {[%clk
0:02:33.2]} 26... Kh7 {[%clk 0:01:30.3]} 27. Rae1 {[%clk 0:02:14.4]} 27... Rxe1
{[%clk 0:01:28.1]} 28. Rxe1 {[%clk 0:02:13.9]} 28... Qf6 {[%clk 0:01:29]} 29.
Re6 {[%clk 0:02:09.7]} 29... Qf7 {[%clk 0:01:23.4]} 30. Qe4 {[%clk 0:02:08.3]}
30... Bf6 {[%clk 0:00:56.2]} 31. Bd6 {[%clk 0:01:46.2]} 31... Rd8 {[%clk
0:00:35.6]} 32. Bxc5 {[%clk 0:01:41.6]} 32... Rc8 {[%clk 0:00:33.4]} 33. b4
{[%clk 0:01:41.6]} 33... a5 {[%clk 0:00:33.2]} 34. Rxf6 {[%clk 0:01:27.8]} 34...
Qxf6 {[%clk 0:00:28.1]} 35. Qb7+ {[%clk 0:01:27.6]} 35... Qg7 {[%clk 0:00:27.9]}
36. Qxc8 {[%clk 0:01:26.8]} 36... axb4 {[%clk 0:00:28.4]} 37. Qb8 {[%clk
0:01:12.1]} 1-0

[Event "*** Titled Tuesday Blitz"]
[Site "Chess.com"]
[Date "2021.03.16"]
[Round "1"]
[White "Firegrizzly"]
[Black "DrMamaliga"]
[Result "1-0"]
[WhiteElo "2648"]
[BlackElo "2340"]
[TimeControl "180+1"]
[EndTime "10:06:28 PDT"]
[Termination "Firegrizzly won by resignation"]

1. d4 {[%clk 0:03:00]} 1... d5 {[%clk 0:02:58.2]} 2. Nf3 {[%clk 0:02:54.8]} 2...
Nf6 {[%clk 0:02:55.9]} 3. Bf4 {[%clk 0:02:55.3]} 3... g6 {[%clk 0:02:55.4]} 4.
e3 {[%clk 0:02:56.2]} 4... Bg7 {[%clk 0:02:55]} 5. Be2 {[%clk 0:02:56.7]} 5...
O-O {[%clk 0:02:55.5]} 6. Nbd2 {[%clk 0:02:57.3]} 6... e6 {[%clk 0:02:52.8]} 7.
h3 {[%clk 0:02:56.9]} 7... Nbd7 {[%clk 0:02:51.9]} 8. O-O {[%clk 0:02:56.9]}
8... b6 {[%clk 0:02:52.4]} 9. c4 {[%clk 0:02:57]} 9... Bb7 {[%clk 0:02:52.6]}
10. a4 {[%clk 0:02:56.1]} 10... c5 {[%clk 0:02:52.2]} 11. a5 {[%clk 0:02:55]}
11... cxd4 {[%clk 0:02:52.4]} 12. exd4 {[%clk 0:02:52.6]} 12... dxc4 {[%clk
0:02:51.1]} 13. Nxc4 {[%clk 0:02:49.3]} 13... Nd5 {[%clk 0:02:51.6]} 14. Bd6
{[%clk 0:02:48]} 14... Re8 {[%clk 0:02:48.8]} 15. Bh2 {[%clk 0:02:44.6]} 15...
Ba6 {[%clk 0:02:37.6]} 16. axb6 {[%clk 0:02:43]} 16... axb6 {[%clk 0:02:37.5]}
17. Rxa6 {[%clk 0:02:42]} 17... Rxa6 {[%clk 0:02:35.4]} 18. Nd6 {[%clk
0:02:42.6]} 18... Ra8 {[%clk 0:02:18.8]} 19. Nxe8 {[%clk 0:02:41.6]} 19... Qxe8
{[%clk 0:02:19.7]} 20. Bb5 {[%clk 0:02:41.7]} 20... Qe7 {[%clk 0:02:17.4]} 21.
Bc6 {[%clk 0:02:35.1]} 21... Rc8 {[%clk 0:02:13.6]} 22. Bxd5 {[%clk 0:02:33.4]}
22... exd5 {[%clk 0:02:14.5]} 23. Qb3 {[%clk 0:02:33.1]} 23... Rc4 {[%clk
0:02:07.4]} 24. Bg3 {[%clk 0:02:25.3]} 24... Qb4 {[%clk 0:02:00.5]} 25. Qe3
{[%clk 0:02:11.6]} 25... Nf6 {[%clk 0:01:45.5]} 26. Ra1 {[%clk 0:02:01.7]} 26...
Rc8 {[%clk 0:01:39]} 27. Ra2 {[%clk 0:01:40]} 27... Ne4 {[%clk 0:01:38.6]} 28.
Be5 {[%clk 0:01:37.3]} 28... Bxe5 {[%clk 0:01:31]} 29. dxe5 {[%clk 0:01:33.7]}
29... Nc3 {[%clk 0:01:30.7]} 30. Ra7 {[%clk 0:01:25.5]} 30... d4 {[%clk
0:01:20.1]} 31. Qh6 {[%clk 0:01:11.3]} 31... Ne2+ {[%clk 0:01:15.2]} 32. Kh2
{[%clk 0:01:10.7]} 32... d3 {[%clk 0:00:59]} 33. e6 {[%clk 0:00:45.8]} 33...
Qd6+ {[%clk 0:00:57.9]} 34. g3 {[%clk 0:00:45.3]} 34... Qxe6 {[%clk 0:00:56.1]}
35. Ng5 {[%clk 0:00:44.5]} 35... Qe5 {[%clk 0:00:23.5]} 36. Qxh7+ {[%clk
0:00:42.8]} 1-0

[Event "*** Titled Tuesday Blitz"]
[Site "Chess.com"]
[Date "2021.03.16"]
[Round "1"]
[White "ZverevLev"]
[Black "tylityli"]
[Result "0-1"]
[WhiteElo "2580"]
[BlackElo "2277"]
[TimeControl "180+1"]
[EndTime "10:06:31 PDT"]
[Termination "tylityli won on time"]

1. e4 {[%clk 0:03:00.2]} 1... e5 {[%clk 0:02:59.4]} 2. Nf3 {[%clk 0:02:59]} 2...
Nc6 {[%clk 0:02:59.4]} 3. Bb5 {[%clk 0:02:58.1]} 3... a6 {[%clk 0:02:59.1]} 4.
Ba4 {[%clk 0:02:58.1]} 4... Nf6 {[%clk 0:02:58]} 5. O-O {[%clk 0:02:56.7]} 5...
Be7 {[%clk 0:02:57.8]} 6. Re1 {[%clk 0:02:55.4]} 6... b5 {[%clk 0:02:56]} 7. Bb3
{[%clk 0:02:54.4]} 7... d6 {[%clk 0:02:56.9]} 8. a4 {[%clk 0:02:50.3]} 8... b4
{[%clk 0:02:55.4]} 9. c3 {[%clk 0:02:47]} 9... O-O {[%clk 0:02:49.6]} 10. d4
{[%clk 0:02:46.1]} 10... bxc3 {[%clk 0:02:44.9]} 11. bxc3 {[%clk 0:02:42.2]}
11... Na5 {[%clk 0:02:39.2]} 12. Ba2 {[%clk 0:02:39.3]} 12... Bg4 {[%clk
0:02:30.6]} 13. Be3 {[%clk 0:02:36.3]} 13... Nxe4 {[%clk 0:02:25.3]} 14. Bd5
{[%clk 0:02:34.7]} 14... Nf6 {[%clk 0:01:53.8]} 15. Bxa8 {[%clk 0:02:34.2]}
15... Qxa8 {[%clk 0:01:54.3]} 16. h3 {[%clk 0:02:33]} 16... Bh5 {[%clk
0:01:40.3]} 17. dxe5 {[%clk 0:02:25.2]} 17... dxe5 {[%clk 0:01:34]} 18. Nbd2
{[%clk 0:02:24.2]} 18... Bd6 {[%clk 0:01:21.2]} 19. Qc2 {[%clk 0:02:19.8]} 19...
Bg6 {[%clk 0:01:19.5]} 20. Qa2 {[%clk 0:02:14.7]} 20... Qc6 {[%clk 0:01:12.1]}
21. Rac1 {[%clk 0:02:08.2]} 21... Bd3 {[%clk 0:01:10.5]} 22. Bg5 {[%clk
0:02:06]} 22... e4 {[%clk 0:01:03]} 23. Nd4 {[%clk 0:02:04.3]} 23... Qb7 {[%clk
0:00:42.2]} 24. Bxf6 {[%clk 0:01:58.9]} 24... gxf6 {[%clk 0:00:43.1]} 25. Nf5
{[%clk 0:01:51.3]} 25... Bf4 {[%clk 0:00:40.9]} 0-1

[Event "*** Titled Tuesday Blitz"]
[Site "Chess.com"]
[Date "2021.03.16"]
[Round "1"]
[White "juli2512"]
[Black "Agibileg"]
[Result "0-1"]
[WhiteElo "2170"]
[BlackElo "2522"]
[TimeControl "180+1"]
[EndTime "10:06:36 PDT"]
[Termination "Agibileg won by checkmate"]

1. e4 {[%clk 0:02:59.1]} 1... c5 {[%clk 0:02:59.5]} 2. d3 {[%clk 0:02:58.8]}
2... e6 {[%clk 0:02:59.7]} 3. Nc3 {[%clk 0:02:56.8]} 3... Nc6 {[%clk 0:02:58.9]}
4. g3 {[%clk 0:02:57]} 4... Nf6 {[%clk 0:02:57.3]} 5. Bg2 {[%clk 0:02:57.3]}
5... Be7 {[%clk 0:02:54.1]} 6. f4 {[%clk 0:02:57.1]} 6... d6 {[%clk 0:02:53.9]}
7. Nf3 {[%clk 0:02:57.1]} 7... O-O {[%clk 0:02:54.4]} 8. O-O {[%clk 0:02:57.5]}
8... Rb8 {[%clk 0:02:53.7]} 9. h3 {[%clk 0:02:57.1]} 9... b5 {[%clk 0:02:53.7]}
10. Be3 {[%clk 0:02:55.1]} 10... a5 {[%clk 0:02:49.9]} 11. g4 {[%clk 0:02:54.1]}
11... Qc7 {[%clk 0:02:49.4]} 12. Ne2 {[%clk 0:02:53.7]} 12... d5 {[%clk
0:02:44.9]} 13. e5 {[%clk 0:02:53.1]} 13... Nd7 {[%clk 0:02:43.8]} 14. Ng3
{[%clk 0:02:53.3]} 14... b4 {[%clk 0:02:07.1]} 15. Nh5 {[%clk 0:02:46.4]} 15...
a4 {[%clk 0:02:05.4]} 16. a3 {[%clk 0:02:42.4]} 16... bxa3 {[%clk 0:02:00.4]}
17. bxa3 {[%clk 0:02:42.2]} 17... Ba6 {[%clk 0:01:58.5]} 18. Qd2 {[%clk
0:02:29.5]} 18... Rb2 {[%clk 0:01:57]} 19. Qc3 {[%clk 0:02:10.4]} 19... Rfb8
{[%clk 0:01:54.7]} 20. Bf2 {[%clk 0:02:08.2]} 20... Qa5 {[%clk 0:01:15.6]} 21.
Qxa5 {[%clk 0:02:06.6]} 21... Nxa5 {[%clk 0:01:16.4]} 22. f5 {[%clk 0:02:05.3]}
22... Rxc2 {[%clk 0:01:14.7]} 23. f6 {[%clk 0:02:02.3]} 23... gxf6 {[%clk
0:01:12.2]} 24. exf6 {[%clk 0:01:59.7]} 24... Nxf6 {[%clk 0:01:12.4]} 25. Bg3
{[%clk 0:01:53.2]} 25... Rbb2 {[%clk 0:01:09.4]} 26. Rf2 {[%clk 0:01:47.5]}
26... Nxh5 {[%clk 0:01:07.3]} 27. gxh5 {[%clk 0:01:45.7]} 27... Rxf2 {[%clk
0:01:00.8]} 28. Bxf2 {[%clk 0:01:45.2]} 28... Bxd3 {[%clk 0:01:01]} 29. Ne5
{[%clk 0:01:43.3]} 29... Bf5 {[%clk 0:00:57.3]} 30. Re1 {[%clk 0:01:23.8]} 30...
Nb3 {[%clk 0:00:53.8]} 31. h6 {[%clk 0:01:23.1]} 31... Bf6 {[%clk 0:00:52.1]}
32. Nd7 {[%clk 0:01:22.2]} 32... Bd4 {[%clk 0:00:50.5]} 33. Bxd4 {[%clk
0:01:19.5]} 33... cxd4 {[%clk 0:00:51.4]} 34. Rf1 {[%clk 0:00:56.5]} 34... d3
{[%clk 0:00:47.9]} 35. Bf3 {[%clk 0:00:49.4]} 35... Nd2 {[%clk 0:00:43.7]} 36.
Rf2 {[%clk 0:00:41.1]} 36... Nxf3+ {[%clk 0:00:41.6]} 37. Rxf3 {[%clk
0:00:41.2]} 37... d2 {[%clk 0:00:40.5]} 38. Rg3+ {[%clk 0:00:34.1]} 38... Kh8
{[%clk 0:00:40.1]} 39. Nf6 {[%clk 0:00:26]} 39... d1=Q# {[%clk 0:00:39.9]} 0-1

[Event "*** Titled Tuesday Blitz"]
[Site "Chess.com"]
[Date "2021.03.16"]
[Round "1"]
[White "Darius321"]
[Black "MatyChess1"]
[Result "0-1"]
[WhiteElo "2270"]
[BlackElo "2609"]
[TimeControl "180+1"]
[EndTime "10:06:45 PDT"]
[Termination "MatyChess1 won by resignation"]

1. e4 {[%clk 0:02:59.6]} 1... c5 {[%clk 0:02:59.8]} 2. Nf3 {[%clk 0:02:58.7]}
2... d6 {[%clk 0:02:59.9]} 3. Bb5+ {[%clk 0:02:58.5]} 3... Nd7 {[%clk
0:02:58.8]} 4. c3 {[%clk 0:02:57.5]} 4... Nf6 {[%clk 0:02:58.4]} 5. Qe2 {[%clk
0:02:56.9]} 5... a6 {[%clk 0:02:58.1]} 6. Ba4 {[%clk 0:02:56.5]} 6... b5 {[%clk
0:02:51.6]} 7. Bc2 {[%clk 0:02:56.9]} 7... Bb7 {[%clk 0:02:42]} 8. O-O {[%clk
0:02:57.8]} 8... e6 {[%clk 0:02:28.6]} 9. a4 {[%clk 0:02:57.7]} 9... Bc6 {[%clk
0:02:22.7]} 10. d4 {[%clk 0:02:51.4]} 10... Be7 {[%clk 0:02:21.6]} 11. Nbd2
{[%clk 0:02:17.2]} 11... O-O {[%clk 0:02:06.1]} 12. a5 {[%clk 0:02:16.7]} 12...
Re8 {[%clk 0:01:56.7]} 13. b4 {[%clk 0:02:12.5]} 13... Rc8 {[%clk 0:01:26.7]}
14. e5 {[%clk 0:01:59.9]} 14... Nd5 {[%clk 0:01:26]} 15. exd6 {[%clk 0:01:53.4]}
15... Bxd6 {[%clk 0:01:23.3]} 16. dxc5 {[%clk 0:01:50.7]} 16... Bf8 {[%clk
0:01:22.5]} 17. Ne4 {[%clk 0:01:45.3]} 17... f5 {[%clk 0:01:17.7]} 18. Ng3
{[%clk 0:01:08.6]} 18... Nxc3 {[%clk 0:01:16.7]} 19. Qd3 {[%clk 0:00:56.7]}
19... Nd5 {[%clk 0:01:16.9]} 20. Bb2 {[%clk 0:00:56.3]} 20... Nxb4 {[%clk
0:01:10]} 21. Qb3 {[%clk 0:00:48.2]} 21... Nxc2 {[%clk 0:01:09]} 22. Qxc2 {[%clk
0:00:49.1]} 22... Bxf3 {[%clk 0:01:09.3]} 23. gxf3 {[%clk 0:00:48.4]} 23... Nxc5
{[%clk 0:01:07.3]} 24. Rfd1 {[%clk 0:00:43.7]} 24... Qh4 {[%clk 0:01:02.5]} 25.
Rac1 {[%clk 0:00:38.9]} 25... Qf4 {[%clk 0:00:42.8]} 26. Qe2 {[%clk 0:00:36.4]}
26... h5 {[%clk 0:00:35.5]} 27. Kh1 {[%clk 0:00:34.9]} 27... h4 {[%clk
0:00:34.8]} 28. Nh5 {[%clk 0:00:30.8]} 28... Qg5 {[%clk 0:00:30]} 29. f4 {[%clk
0:00:31.1]} 29... Qg4 {[%clk 0:00:30.6]} 30. Qxg4 {[%clk 0:00:27.4]} 30... fxg4
{[%clk 0:00:31.1]} 31. Rg1 {[%clk 0:00:27.2]} 31... Nd3 {[%clk 0:00:31.6]} 32.
Rxg4 {[%clk 0:00:18.7]} 32... Rxc1+ {[%clk 0:00:28.4]} 33. Bxc1 {[%clk
0:00:16.7]} 33... Nxf2+ {[%clk 0:00:29.3]} 34. Kg2 {[%clk 0:00:14.9]} 34... Nxg4
{[%clk 0:00:30.2]} 0-1

[Event "*** Titled Tuesday Blitz"]
[Site "Chess.com"]
[Date "2021.03.16"]
[Round "1"]
[White "HrvojeZagreb"]
[Black "ENajer77"]
[Result "0-1"]
[WhiteElo "2300"]
[BlackElo "2626"]
[TimeControl "180+1"]
[EndTime "10:06:47 PDT"]
[Termination "ENajer77 won by checkmate"]

1. d4 {[%clk 0:03:00.9]} 1... Nf6 {[%clk 0:02:59.3]} 2. Bf4 {[%clk 0:03:00.5]}
2... c5 {[%clk 0:02:58.8]} 3. e3 {[%clk 0:03:00]} 3... Nd5 {[%clk 0:02:59]} 4.
Bg3 {[%clk 0:02:54.4]} 4... Qb6 {[%clk 0:02:58.4]} 5. b3 {[%clk 0:02:45]} 5...
g6 {[%clk 0:02:55.5]} 6. c4 {[%clk 0:02:41.5]} 6... Nf6 {[%clk 0:02:51.5]} 7.
Nc3 {[%clk 0:02:37.4]} 7... Bg7 {[%clk 0:02:47.3]} 8. Nf3 {[%clk 0:02:32.1]}
8... O-O {[%clk 0:02:46.7]} 9. Rc1 {[%clk 0:02:28.1]} 9... d6 {[%clk 0:02:44.9]}
10. Be2 {[%clk 0:02:25.7]} 10... cxd4 {[%clk 0:02:40]} 11. exd4 {[%clk
0:02:24.7]} 11... h6 {[%clk 0:02:26.1]} 12. O-O {[%clk 0:02:23.8]} 12... Nh5
{[%clk 0:02:24.6]} 13. Nd5 {[%clk 0:02:19.7]} 13... Qd8 {[%clk 0:02:24.3]} 14.
Re1 {[%clk 0:02:01.5]} 14... Nxg3 {[%clk 0:02:23.2]} 15. hxg3 {[%clk 0:02:02]}
15... Nc6 {[%clk 0:02:21.8]} 16. Nf4 {[%clk 0:01:55.7]} 16... Bd7 {[%clk
0:02:17]} 17. d5 {[%clk 0:01:55]} 17... Ne5 {[%clk 0:02:03.9]} 18. Nxe5 {[%clk
0:01:54.8]} 18... Bxe5 {[%clk 0:01:57.6]} 19. Bg4 {[%clk 0:01:49.6]} 19... Rc8
{[%clk 0:01:43.3]} 20. Bxd7 {[%clk 0:01:42.8]} 20... Qxd7 {[%clk 0:01:43.2]} 21.
Nd3 {[%clk 0:01:42.1]} 21... Bf6 {[%clk 0:01:42.4]} 22. a4 {[%clk 0:01:36.2]}
22... h5 {[%clk 0:01:42]} 23. Nf4 {[%clk 0:01:24.4]} 23... Be5 {[%clk
0:01:39.4]} 24. Qd3 {[%clk 0:01:21.4]} 24... Kg7 {[%clk 0:01:36.9]} 25. f3
{[%clk 0:01:17.3]} 25... h4 {[%clk 0:01:32.2]} 26. Qe3 {[%clk 0:00:59]} 26...
hxg3 {[%clk 0:01:24.3]} 27. Nd3 {[%clk 0:00:58.5]} 27... Bf6 {[%clk 0:01:21.4]}
28. f4 {[%clk 0:00:57.8]} 28... Qg4 {[%clk 0:01:19.6]} 29. Qf3 {[%clk
0:00:44.8]} 29... Qxf3 {[%clk 0:01:11.5]} 30. gxf3 {[%clk 0:00:45.7]} 30... Rh8
{[%clk 0:01:11.5]} 31. Kg2 {[%clk 0:00:45.3]} 31... Rh2+ {[%clk 0:01:09.5]} 32.
Kxg3 {[%clk 0:00:44.8]} 32... Rch8 {[%clk 0:01:08.9]} 33. Rg1 {[%clk 0:00:25.2]}
33... R8h3+ {[%clk 0:01:04.1]} 34. Kg4 {[%clk 0:00:25.2]} 34... Rh4+ {[%clk
0:01:03.5]} 35. Kg3 {[%clk 0:00:23.8]} 35... R4h3+ {[%clk 0:01:04.1]} 36. Kg4
{[%clk 0:00:23.8]} 36... Bd4 {[%clk 0:01:04.8]} 37. f5 {[%clk 0:00:18.5]} 37...
Bxg1 {[%clk 0:01:01.6]} 38. Rxg1 {[%clk 0:00:19.4]} 38... Rh4+ {[%clk
0:00:59.1]} 39. Kg3 {[%clk 0:00:19.4]} 39... g5 {[%clk 0:00:56.8]} 40. Nf2
{[%clk 0:00:17.2]} 40... Rh8 {[%clk 0:00:46.6]} 41. Ng4 {[%clk 0:00:16.6]} 41...
R8h3# {[%clk 0:00:44.7]} 0-1

[Event "*** Titled Tuesday Blitz"]
[Site "Chess.com"]
[Date "2021.03.16"]
[Round "1"]
[White "Onischuk_V"]
[Black "Tekushka"]
[Result "1-0"]
[WhiteElo "2834"]
[BlackElo "2442"]
[TimeControl "180+1"]
[EndTime "10:06:49 PDT"]
[Termination "Onischuk_V won by checkmate"]

1. Nf3 {[%clk 0:03:00.9]} 1... d5 {[%clk 0:02:59.4]} 2. g3 {[%clk 0:03:00]} 2...
Nd7 {[%clk 0:02:59.5]} 3. Bg2 {[%clk 0:02:59.6]} 3... e5 {[%clk 0:02:59.4]} 4.
O-O {[%clk 0:02:59.4]} 4... Ngf6 {[%clk 0:02:59.3]} 5. d4 {[%clk 0:02:54.7]}
5... e4 {[%clk 0:02:55.1]} 6. Ne5 {[%clk 0:02:54.3]} 6... Bd6 {[%clk 0:02:55]}
7. Nxd7 {[%clk 0:02:46.1]} 7... Bxd7 {[%clk 0:02:54.2]} 8. c4 {[%clk 0:02:46.7]}
8... c6 {[%clk 0:02:53.8]} 9. Nc3 {[%clk 0:02:45.8]} 9... h6 {[%clk 0:02:51.1]}
10. f3 {[%clk 0:02:43.8]} 10... exf3 {[%clk 0:02:40]} 11. Bxf3 {[%clk
0:02:42.4]} 11... Be6 {[%clk 0:01:50.6]} 12. cxd5 {[%clk 0:02:41.7]} 12... cxd5
{[%clk 0:01:47.7]} 13. Qa4+ {[%clk 0:02:37.5]} 13... Qd7 {[%clk 0:01:41.9]} 14.
Qxd7+ {[%clk 0:02:36.9]} 14... Kxd7 {[%clk 0:01:37.6]} 15. Bf4 {[%clk
0:02:37.4]} 15... Bb4 {[%clk 0:01:11.4]} 16. Be5 {[%clk 0:02:15.4]} 16... Bxc3
{[%clk 0:01:09.9]} 17. bxc3 {[%clk 0:02:15.1]} 17... Rhc8 {[%clk 0:01:07.4]} 18.
Rac1 {[%clk 0:02:05.5]} 18... Rc4 {[%clk 0:00:58.9]} 19. Bxf6 {[%clk 0:02:01.1]}
19... gxf6 {[%clk 0:00:58.6]} 20. e4 {[%clk 0:02:00.2]} 20... dxe4 {[%clk
0:00:43]} 21. Bxe4 {[%clk 0:02:00]} 21... Rac8 {[%clk 0:00:40.8]} 22. Bxb7
{[%clk 0:01:28.4]} 22... R8c7 {[%clk 0:00:39.5]} 23. Bg2 {[%clk 0:01:17.7]}
23... Rxc3 {[%clk 0:00:29]} 24. Rxc3 {[%clk 0:01:17.1]} 24... Rxc3 {[%clk
0:00:29.6]} 25. d5 {[%clk 0:01:17.3]} 25... Bg4 {[%clk 0:00:28]} 26. h3 {[%clk
0:01:17.3]} 26... Bh5 {[%clk 0:00:18.7]} 27. g4 {[%clk 0:01:14.8]} 27... Bg6
{[%clk 0:00:18.1]} 28. Rxf6 {[%clk 0:01:15.3]} 28... Rc1+ {[%clk 0:00:16.7]} 29.
Kh2 {[%clk 0:01:14.4]} 29... Rc2 {[%clk 0:00:16.8]} 30. Kg3 {[%clk 0:01:10.9]}
30... Rxa2 {[%clk 0:00:16.1]} 31. h4 {[%clk 0:01:10.8]} 31... Ra3+ {[%clk
0:00:14.4]} 32. Kf4 {[%clk 0:00:52.9]} 32... Ra4+ {[%clk 0:00:14.2]} 33. Ke5
{[%clk 0:00:53.2]} 33... h5 {[%clk 0:00:06.3]} 34. gxh5 {[%clk 0:00:46.5]} 34...
Bxh5 {[%clk 0:00:06.6]} 35. Bh3+ {[%clk 0:00:46.8]} 35... Ke8 {[%clk 0:00:06.8]}
36. Rc6 {[%clk 0:00:44.5]} 36... Rxh4 {[%clk 0:00:03.8]} 37. Rc8+ {[%clk
0:00:44.4]} 37... Ke7 {[%clk 0:00:03.3]} 38. d6# {[%clk 0:00:45]} 1-0

[Event "*** Titled Tuesday Blitz"]
[Site "Chess.com"]
[Date "2021.03.16"]
[Round "1"]
[White "albi1999"]
[Black "Fortitudine"]
[Result "0-1"]
[WhiteElo "2596"]
[BlackElo "2299"]
[TimeControl "180+1"]
[EndTime "10:06:49 PDT"]
[Termination "Fortitudine won by checkmate"]

1. d4 {[%clk 0:02:56.3]} 1... Nf6 {[%clk 0:02:58.3]} 2. Bg5 {[%clk 0:02:45.3]}
2... d5 {[%clk 0:02:53.3]} 3. Bxf6 {[%clk 0:02:43.6]} 3... exf6 {[%clk
0:02:54.2]} 4. e3 {[%clk 0:02:41.9]} 4... c6 {[%clk 0:02:53.6]} 5. c4 {[%clk
0:02:41.4]} 5... dxc4 {[%clk 0:02:54.5]} 6. Bxc4 {[%clk 0:02:42.1]} 6... Bd6
{[%clk 0:02:55]} 7. Ne2 {[%clk 0:02:41.3]} 7... O-O {[%clk 0:02:54.7]} 8. Nbc3
{[%clk 0:02:41.9]} 8... Re8 {[%clk 0:02:46.9]} 9. Qc2 {[%clk 0:02:41.5]} 9...
Be6 {[%clk 0:02:32.2]} 10. Bd3 {[%clk 0:02:40.1]} 10... h6 {[%clk 0:02:27.5]}
11. O-O {[%clk 0:02:39.3]} 11... Nd7 {[%clk 0:02:23.5]} 12. a3 {[%clk
0:02:36.4]} 12... Rc8 {[%clk 0:02:21.7]} 13. b4 {[%clk 0:02:36.1]} 13... b6
{[%clk 0:02:17.6]} 14. Rfd1 {[%clk 0:02:31.4]} 14... Qe7 {[%clk 0:02:13.7]} 15.
Be4 {[%clk 0:02:26]} 15... g6 {[%clk 0:02:01.6]} 16. Rac1 {[%clk 0:02:13.9]}
16... f5 {[%clk 0:02:01.5]} 17. Bf3 {[%clk 0:02:07.8]} 17... Nf6 {[%clk
0:02:01.7]} 18. Qa4 {[%clk 0:02:05.7]} 18... c5 {[%clk 0:01:41.7]} 19. dxc5
{[%clk 0:01:45.3]} 19... bxc5 {[%clk 0:01:41.8]} 20. b5 {[%clk 0:01:42.5]} 20...
g5 {[%clk 0:01:16.9]} 21. Bc6 {[%clk 0:01:39.8]} 21... Red8 {[%clk 0:01:17.1]}
22. g3 {[%clk 0:01:34.7]} 22... h5 {[%clk 0:00:40.7]} 23. h4 {[%clk 0:01:29.6]}
23... Ng4 {[%clk 0:00:36]} 24. hxg5 {[%clk 0:01:28.9]} 24... Qxg5 {[%clk
0:00:31.6]} 25. Nf4 {[%clk 0:01:15.3]} 25... h4 {[%clk 0:00:27.4]} 26. gxh4
{[%clk 0:01:06.5]} 26... Qxh4 {[%clk 0:00:24.8]} 27. Qc2 {[%clk 0:01:07.4]}
27... Bxf4 {[%clk 0:00:18]} 28. exf4 {[%clk 0:01:03.8]} 28... Qh6 {[%clk
0:00:11.9]} 29. Nd5 {[%clk 0:00:55.3]} 29... Qh2+ {[%clk 0:00:10.8]} 30. Kf1
{[%clk 0:00:55.1]} 30... Bxd5 {[%clk 0:00:08.5]} 31. Bxd5 {[%clk 0:00:45.6]}
31... Rxd5 {[%clk 0:00:08.7]} 32. Rxd5 {[%clk 0:00:38.4]} 32... Qh1+ {[%clk
0:00:09]} 33. Ke2 {[%clk 0:00:39.3]} 33... Qxd5 {[%clk 0:00:09.5]} 34. Rd1
{[%clk 0:00:38.6]} 34... Re8+ {[%clk 0:00:09.8]} 35. Kf1 {[%clk 0:00:39]} 35...
Qh1# {[%clk 0:00:09.9]} 0-1